Cogmind - Beta 13 X1 @@@ ROGUE MODE // 2023.08.05 @ 14:27:01 Player: Cracklepappy Result: Destroyed by S-10 Pest with Light Assault Rifle Performance ------------- Evolutions (2) 1000 Regions Visited (4) 800 Robots Destroyed (81) 405 Value Destroyed (2177) 2177 Prototype IDs (4) 80 Alien Tech Used (0) 0 Bonus (133) 133 TOTAL SCORE: 4595 Bonus ------- High Alert Combat Kills 133 Cogmind --------- Core Integrity 0/550 Matter 219/300 Energy 99/100 System Corruption 0% Temperature Cool (0) Movement Core (50) Location -8/Materials Parts ------- > --- POWER (1) -------- (None) > --- PROPULSION (4) --- (None) > --- UTILITY (3) ------ Visual Processing Unit > --- WEAPON (3) ------- (None) > --- INVENTORY (5) ---- Improved Ion Engine Sensor Drone Bay (20/20) Cobbler Unit Barrage Gun Peak State ------------ > --- POWER ------------ Ion Engine > --- PROPULSION ------- Subdweller Monowheel Subdweller Monowheel Subdweller Monowheel > --- UTILITY ---------- Heat Sink Huge Storage Unit Makeshift Armor Plating > --- WEAPON ----------- Riot Gun Heavy EM Shotgun EM Pulse Cannon > --- INVENTORY -------- Light Treads Large Storage Unit High-capacity Matter Pod Experimental Sensor Array Makeshift Hacking Suite Sensor Drone Bay Cobbler Unit Subdweller Laser Subdweller Laser Autogun Battle Rifle Barrage Gun Barrage Gun Rocket Launcher Subdweller Shrapnel Launcher Subdweller Shrapnel Launcher Multitool [Rating: 28] Favorites ----------- Power Ion Engine Engine Ion Engine Propulsion Light Treads Treads Light Treads Wheel Subdweller Monowheel Utility Small Storage Unit Device Seismic Detector Storage Small Storage Unit Processor Visual Processing Unit Protection Makeshift Armor Plating Weapon Light Assault Rifle Energy Gun Subdweller Laser Energy Cannon EM Pulse Cannon Ballistic Gun Light Assault Rifle Launcher Subdweller Shrapnel Launcher Special Weapon Mining Laser Build | -11 -10 -10 -10 -8 ------- Run | Jun Mat Min Sub Mat Slots Evolved 4 | . . . . 4 Power . | . . . . . Propulsion 2 | . . . . 2 Utility 1 | . . . . 1 Weapon 1 | . . . . 1 Parts Attached 69 | 8 8 11 25 17 Power 4 | 1 1 . 1 1 Engine 4 | 1 1 . 1 1 Core . | . . . . . Reactor . | . . . . . Propulsion 14 | 3 3 1 5 2 Treads 10 | 2 3 1 3 1 Leg . | . . . . . Wheel 4 | 1 . . 2 1 Hover . | . . . . . Flight . | . . . . . Utility 13 | 2 . 4 3 4 Device 3 | 1 . 1 . 1 Storage 7 | 1 . 3 1 2 Processor 1 | . . . . 1 Hackware . | . . . . . Protection 2 | . . . 2 . Artifact . | . . . . . Weapon 38 | 2 4 6 16 10 Energy Gun 10 | 1 . . 5 4 Energy Cannon 3 | . . . 2 1 Ballistic Gun 11 | 1 4 2 2 2 Ballistic Cannon . | . . . . . Launcher 12 | . . 3 6 3 Special Weapon 2 | . . 1 1 . Impact Weapon . | . . . . . Slashing Weapon . | . . . . . Piercing Weapon . | . . . . . Special Melee Weapon . | . . . . . Unidentified Prototypes 2 | . . 1 . 1 Parts Lost 15 | . 1 . 5 9 Power 2 | . . . 1 1 Propulsion 5 | . . . 4 1 Utility 1 | . . . . 1 Weapon 7 | . 1 . . 6 Highest Loss Streak 6 | . 1 . 2 6 To Critical Strikes . | . . . . . Average Slot Usage (%) 96 | . 100 100 96 62 Engine 12 | . 14 14 12 6 Treads 24 | . 28 28 24 . Wheel 1 | . . . 1 18 Device 4 | . 14 3 . 2 Storage 17 | . 14 24 17 6 Protection 5 | . . . 10 6 Energy Gun 6 | . 1 . 9 11 Ballistic Gun 9 | . 26 16 . 3 Launcher 11 | . . 11 17 . Naked Turns 54 | . . . . 54 Heaviest Build 103 | 14 14 20 37 103 Greatest Support 40 | 40 40 40 40 20 Greatest Overweight (x) 5 | . . . 1 5 Average Overweight (x) . | . . . . 1 Largest Inventory Capacity 25 | 8 8 8 15 25 Average Capacity 9 | 7 8 8 9 18 Most Carried 20 | 8 8 8 15 20 Average Carried 8 | 6 7 7 9 14 Final Capacity 15 | 8 8 8 15 5 Final Carried 15 | 8 8 8 15 5 Class Distribution -------------------- 54% | Mutant 40% | Scavenger-Mutant Dominant Class ---------------- Scavenger-Mutant | -10/Materials Mutant | -10/Mines Mutant | -10/Subcaves Derelict-Tank | -8/Materials Resources | -11 -10 -10 -10 -8 ----------- Run | Jun Mat Min Sub Mat Matter Collected 2368 | 315 612 198 836 407 Remotely . | . . . . . Salvage Created 2398 | 143 1024 17 602 612 Parts 174 | 13 66 1 48 46 Haulers Intercepted 2 | . 2 . . . Recyclers Shooed 4 | . 3 . . 1 Parts Field Recycled . | . . . . . Retrieved Matter . | . . . . . Parts Self-Destructed 11 | . . . 11 . Prevented . | . . . . . Kills | -11 -10 -10 -10 -8 ------- Run | Jun Mat Min Sub Mat Combat Hostiles Destroyed 58 | . 19 4 25 10 Guns 26 | . 19 . 4 3 Cannons 1 | . . . . 1 AOE 30 | . . 4 21 5 Classes Destroyed 15 | 3 4 1 3 4 Worker 6 | 1 2 1 . 2 Builder 5 | . . . . 5 Tunneler 5 | 4 . . . 1 Hauler 2 | . 2 . . . Recycler 4 | 1 2 . . 1 Mechanic 1 | . . . . 1 Turret 2 | . . . 2 . Watcher 3 | . 3 . . . Swarmer 6 | . 6 . . . Grunt 25 | . 13 . 4 8 Brawler 1 | . . . . 1 Sentry 1 | . . . . 1 Cobbler 1 | . . . 1 . Subdweller 21 | . . . 21 . Assembled 4 | . . 4 . . Best Kill Streak 14 | 3 6 3 6 14 Combat Bots Only 6 | . 4 2 6 6 Max Kills in Single Turn 3 | 1 2 3 2 3 Gunslinging 1 | . 1 . . . Exploded 2 | . . 2 2 2 Melee . | . . . . . Uniques/NPCs Destroyed . | . . . . . Combat | -11 -10 -10 -10 -8 -------- Run | Jun Mat Min Sub Mat Damage Taken 3429 | . 829 80 1046 1474 Core 767 | . 101 . 112 554 Absorbed by Shields . | . . . . . Core Remaining (%) 57 | 100 . . 14 . Volleys Fired 271 | 15 118 13 94 31 Largest 3 | 2 2 1 2 3 Hottest 163 | 60 60 100 120 163 Shots Fired 467 | 30 234 13 136 54 Gun 358 | 30 234 . 56 38 Cannon 11 | . . . 6 5 Launcher 86 | . . 8 67 11 Special 12 | . . 5 7 . Kinetic 277 | 15 220 . 32 10 Thermal 113 | 15 14 5 65 14 Explosive 48 | . . 8 39 1 Electromagnetic 29 | . . . . 29 Robot Hit Streak 23 | 6 17 1 23 9 Robot Miss Streak 4 | 2 4 3 1 2 Penetration Max . | . . . . . Secondary Targets 2 | . 1 . . 1 Max Gunslinging Chain 1 | . 1 . . 1 Shots Hit Robots 269 | 19 148 1 60 41 Core Hits 163 | 7 53 6 59 38 Critical Kills 1 | . 1 . . . Critical Parts Destroyed 1 | . 1 . . . Critical Strikes 2 | . 2 . . . Destroy 2 | . 2 . . . Melee Attacks . | . . . . . Impact . | . . . . . Slashing . | . . . . . Piercing . | . . . . . Sneak Attacks . | . . . . . Combat Hostiles . | . . . . . Follow-up Attacks . | . . . . . Damage Inflicted 8074 | 223 1445 308 3820 2278 Guns 2937 | 223 1433 . 651 630 Cannons 73 | . . . . 73 Explosions 4987 | . . 298 3169 1520 Melee . | . . . . . Ramming 77 | . 12 10 . 55 Kinetic 3839 | 105 1309 . 1081 1344 Thermal 1214 | 118 124 . 603 369 Explosive 2485 | . . 298 2136 51 Electromagnetic 459 | . . . . 459 Impact . | . . . . . Slashing . | . . . . . Piercing . | . . . . . Highest Corruption . | . . . . . Average Corruption . | . . . . . Corruption Purged . | . . . . . Corruption Blocked . | . . . . . Overload Shots . | . . . . . Overflow Damage 125 | . . 14 64 47 Projectiles . | . . . . . Explosions 125 | . . 14 64 47 Melee . | . . . . . Knockbacks . | . . . . . Impact . | . . . . . Kinetic . | . . . . . Secondary . | . . . . . Self-Inflicted Damage 338 | . . 69 68 201 Shots 13 | . . 2 4 7 Rammed 14 | . 4 2 . 8 Targets Rammed 14 | . 4 2 . 8 Kicked . | . . . . . Crushed . | . . . . . Highest Temperature 350 | 20 30 22 105 350 Average Temperature 53 | 20 10 10 34 104 Received Heat Transfer 1224 | . 375 . 147 702 Effects 1 | . . . . 1 Energy Bleed 1 | . . . . 1 Siege Activations . | . . . . . Robots Corrupted 1 | . . . . 1 Combat Hostiles 1 | . . . . 1 Parts Fried 1 | . . . . 1 Impact Corruptions . | . . . . . Robots Melted . | . . . . . Combat Hostiles . | . . . . . Parts Melted 2 | . 1 . 1 . Heat Transferred 1725 | 275 275 . 725 450 Parts Sabotaged . | . . . . . Parts Stolen . | . . . . . Parts Stripped . | . . . . . Power Chain Reactions 2 | . . . . 2 Missiles Intercepted . | . . . . . Alert | -11 -10 -10 -10 -8 ------- Run | Jun Mat Min Sub Mat Peak Influence 794 | 30 256 69 . 794 Initial 361 | . 19 64 . 361 Average 116 | 12 111 22 . 490 Maximum Alert Level 3 | . 1 . . 3 Low Security (%) 87 | 100 95 100 . . Level 1 6 | . 4 . . 37 Level 2 4 | . . . . 44 Level 3 1 | . . . . 18 Level 4 . | . . . . . Level 5 . | . . . . . High Security . | . . . . . Max Security . | . . . . . Squads Dispatched 7 | . 4 . . 3 Investigation 3 | . 3 . . . Extermination . | . . . . . Reinforcement 4 | . 1 . . 3 Assault . | . . . . . Garrison . | . . . . . Intercept . | . . . . . Searches Triggered 1 | . . . . 1 Construction Impeded 1 | . . . . 1 Haulers Reinforced . | . . . . . Active Scanning Responses . | . . . . . Cargo Convoy Interrupts . | . . . . . Stealth | -11 -10 -10 -10 -8 --------- Run | Jun Mat Min Sub Mat Distress Signals 7 | . 2 . . 5 Communications Jammed . | . . . . . Distress Signals . | . . . . . Times Spotted 127 | . 41 3 42 41 Peak Tracking Total 20 | . 4 2 3 20 Tactical Retreats 15 | . 6 . 4 5 Traps | -11 -10 -10 -10 -8 ------- Run | Jun Mat Min Sub Mat Traps Triggered 5 | . 2 . 3 . Indirectly . | . . . . . Trap Hack Attempts . | . . . . . Triggered . | . . . . . Disarmed . | . . . . . Reprogrammed . | . . . . . Reused . | . . . . . Traps Extracted . | . . . . . Installed . | . . . . . Triggered . | . . . . . Machines | -11 -10 -10 -10 -8 ---------- Run | Jun Mat Min Sub Mat Machines Disabled 5 | . . . 4 1 Max in Single Turn 3 | . . . 3 1 Machines Repaired . | . . . . . Machines Sabotaged . | . . . . . Overloaded Fab Kills . | . . . . . Hacking | -11 -10 -10 -10 -8 --------- Run | Jun Mat Min Sub Mat Machines Accessed 11 | . 8 1 1 1 Terminals 6 | . 5 . . 1 Fabricators . | . . . . . Repair Stations 1 | . 1 . . . Recycling Units 2 | . 2 . . . Scanalyzers . | . . . . . Garrison Access . | . . . . . Total Hacks 27 | . 18 1 4 4 Successful 13 | . 7 1 4 1 Failed 13 | . 10 . . 3 Catastrophic 3 | . 3 . . . Database Lockouts 1 | . 1 . . . Manual 9 | . 9 . . . Terminals 17 | . 13 . . 4 Fabricators . | . . . . . Repair Stations 2 | . 2 . . . Recycling Units 3 | . 3 . . . Scanalyzers . | . . . . . Garrison Access . | . . . . . Terminal Hacks 9 | . 3 1 4 1 Record 4 | . . . 4 . Part Schematic 2 | . 2 . . . Prototype ID Bank 1 | . 1 . . . Open Door 1 | . . 1 . . Branch Access Points 1 | . . . . 1 Fabricator Hacks . | . . . . . Repair Station Hacks 1 | . 1 . . . Scan Component 1 | . 1 . . . Recycling Unit Hacks 2 | . 2 . . . Retrieve Components 2 | . 2 . . . Scanalyzer . | . . . . . Garrison Access Hacks . | . . . . . Unauthorized Hacks 1 | . 1 . . . Terminals . | . . . . . Fabricators . | . . . . . Repair Stations . | . . . . . Recycling Units 1 | . 1 . . . Tunnel 1 | . 1 . . . Scanalyzers . | . . . . . Garrison Access . | . . . . . Data Cores Recovered . | . . . . . Used . | . . . . . Hacking Detections 7 | . 6 . . 1 Full Trace Events . | . . . . . Feedback Events . | . . . . . Feedback Blocked . | . . . . . Robot Schematics Acquired . | . . . . . Robots Built . | . . . . . Authchips . | . . . . . Time . | . . . . . Total Robot Build Rating . | . . . . . Part Schematics Acquired 2 | . 2 . . . Parts Built . | . . . . . Authchips . | . . . . . Time . | . . . . . Total Part Build Rating . | . . . . . Parts Repaired . | . . . . . Time . | . . . . . Parts Recycled . | . . . . . Recycled Matter . | . . . . . Retrieved Matter . | . . . . . Retrieved Components 10 | . 10 . . . Parts Scanalyzed . | . . . . . Part Schematics Acquired . | . . . . . Parts Damaged . | . . . . . Bothacking | -11 -10 -10 -10 -8 ------------ Run | Jun Mat Min Sub Mat Used RIF Installer . | . . . . . Robots Hacked . | . . . . . Non-combat . | . . . . . Combat . | . . . . . Robot Hacks Applied . | . . . . . Relay Couplers Released . | . . . . . Fabnet Peak Effective % . | . . . . . Robots Rewired . | . . . . . Allies Hacked . | . . . . . Hacks Repelled . | . . . . . Allies | -11 -10 -10 -10 -8 -------- Run | Jun Mat Min Sub Mat Total Allies . | . . . . . Largest Group . | . . . . . Highest-Rated Group . | . . . . . Highest-Rated Ally . | . . . . . Total Orders . | . . . . . Ally Attacks . | . . . . . Total Damage . | . . . . . Kills . | . . . . . Allies Corrupted . | . . . . . Allies Melted . | . . . . . Intel | -11 -10 -10 -10 -8 ------- Run | Jun Mat Min Sub Mat Robot Analysis Total . | . . . . . Derelict Logs Recovered 3 | . . . 3 . Drone Launches . | . . . . . Drone Recoveries . | . . . . . Exploration | -11 -10 -10 -10 -8 ------------- Run | Jun Mat Min Sub Mat Turns Passed 10089 | 159 2605 1564 5284 477 Spaces Moved 5283 | 94 1091 775 2968 355 Core 190 | 4 . . . 186 Treads 4645 | 1 1091 775 2777 1 Legs . | . . . . . Wheels 448 | 89 . . 191 168 Hover . | . . . . . Flight . | . . . . . Fastest Speed 50 | 50 160 160 120 50 Average Speed 157 | 98 160 160 164 94 Slowest Speed 480 | 160 160 160 240 480 Overloaded Moves . | . . . . . Propulsion Burnouts . | . . . . . Robots Hopped . | . . . . . Cave-ins Triggered . | . . . . . Exploration Rate (%) 69 | 3 98 100 95 49 Regions Visited 4 Branch Regions 2 Pre-discovered Areas 1 | . 1 . . . Known Exits Taken . | . . . . . Unknown Exits Taken 4 | 1 1 1 1 . Scrap Searched 7 | . . 1 6 . Spaces Dug 77 | . . 23 54 . Terrain Destroyed 662 | . . 62 508 92 Melee . | . . . . . Projectile 7 | . . 5 2 . AOE 655 | . . 57 506 92 Terrain Rammed . | . . . . . Walls Destroyed . | . . . . . Machines Disabled . | . . . . . Actions | -11 -10 -10 -10 -8 --------- Run | Jun Mat Min Sub Mat Total 6617 | 128 1756 1076 3212 445 Wait 884 | . 508 263 96 17 Move 5279 | 93 1090 774 2967 355 Hop . | . . . . . Pick Up 53 | 11 12 5 16 9 Fast Attach 19 | 5 1 . 7 6 Attach 17 | 2 1 1 3 10 Detach 3 | . . . . 3 Swap 33 | 1 6 10 15 1 Drop 44 | 1 16 8 14 5 Fire 271 | 15 118 13 94 31 Melee . | . . . . . Ram 8 | . . . . 8 Kick . | . . . . . Crush 6 | . 4 2 . . Escape Stasis . | . . . . . Rewire . | . . . . . Trap . | . . . . . Miscellaneous . | . . . . . Route ------- -11/Junkyard -10/Materials (discovered 6 exits: [*Mat x3] / *Min x2 / *Sub) -10/Mines (discovered 4 exits: [*Mat x2] / [*Exi] / *Sub) -10/Subcaves (discovered 3 exits: *Mat x2 / *Rec) -8/Materials (discovered 1 exit: [*Fac]) History --------- Turn | Location | Event 10 | -11/Junkyard | Discovered new exit (range 15) 160 | -11/Junkyard | Entered Materials 315 | -10/Materials | Build established: Mutant 329 | -10/Materials | Discovered new exit (range 15) 524 | -10/Materials | Discovered new exit (range 4) 649 | -10/Materials | Discovered new exit (range 10) 880 | -10/Materials | Discovered new exit (range 12) 979 | -10/Materials | Discovered new exit (range 15) 1196 | -10/Materials | Discovered new exit (range 15) 1246 | -10/Materials | Build established: Scavenger-Mutant 1418 | -10/Materials | Central database locked down 2765 | -10/Materials | Entered Mines 2789 | -10/Mines | Assembled infested the area 3160 | -10/Mines | Found a damaged Exp. Sensor Array with a note attached 3165 | -10/Mines | Found Prototype Device 3236 | -10/Mines | Found the Drone Emporium 3243 | -10/Mines | Found Prototype Device 3244 | -10/Mines | Identified Sensor Drone Bay 3406 | -10/Mines | Received a Rocket Launcher from a helpful Derelict 3421 | -10/Mines | Discovered new exit (range 12) 3653 | -10/Mines | Discovered new exit (range 9) 3669 | -10/Mines | Discovered new exit (range 6) 3767 | -10/Mines | Build established: Mutant 3784 | -10/Mines | Deemed a non-threat by the Exiles lab entrance 3786 | -10/Mines | Discovered new exit (range 5) 4329 | -10/Mines | Entered Subcaves 4447 | -10/Subcaves | Shifting Twisted Machinery released Sub. Power Source 4464 | -10/Subcaves | Shifting Twisted Machinery released Mak. Hacking Suite 4744 | -10/Subcaves | Discovered new exit (range 14) 5218 | -10/Subcaves | Learned Materials emergency access door positions 5231 | -10/Subcaves | A swath of the cavern ceiling suddenly collapsed 5288 | -10/Subcaves | Discovered new exit (range 9) 5458 | -10/Subcaves | Ambushed by Subdweller buried in earth 5521 | -10/Subcaves | Identified exit to Recycling 5565 | -10/Subcaves | Learned Materials interactive machine intel 5624 | -10/Subcaves | Shifting Twisted Machinery released Sub. Shrapnel Launcher 5629 | -10/Subcaves | Shifting Twisted Machinery released Mak. Armor Plating 5684 | -10/Subcaves | A swath of the cavern ceiling suddenly collapsed 5943 | -10/Subcaves | Visited Clippyterm 5948 | -10/Subcaves | Learned 40 Factory zone layouts 6334 | -10/Subcaves | Ambushed by Subdweller buried in earth 6342 | -10/Subcaves | Core integrity fell below 50% 6862 | -10/Subcaves | Shifting Twisted Machinery released Piercing Trap 7315 | -10/Subcaves | Build established: Scavenger-Mutant 8089 | -10/Subcaves | Ambushed by Subdweller buried in earth 8233 | -10/Subcaves | Ambushed by Subdweller buried in earth 8546 | -10/Subcaves | Build established: Mutant 9180 | -10/Subcaves | Build established: Scavenger-Mutant 9301 | -10/Subcaves | Core integrity fell below 20% 9613 | -10/Subcaves | Entered Materials 9613 | -8/Materials | Evolved 4 slots: Propulsion x2, Utility x1, Weapon x1 9615 | -8/Materials | Loaded intel: 17 interactive machine locations 9962 | -8/Materials | Lost 6 parts (1p1u4w) 9986 | -8/Materials | Released all parts (6) 10013 | -8/Materials | Search patrols dispatched 10016 | -8/Materials | Lost 3 parts (1n2w) 10024 | -8/Materials | Core integrity fell below 50% 10052 | -8/Materials | Core integrity fell below 20% 10087 | -8/Materials | Discovered new exit (range 15) 10090 | -8/Materials | Destroyed by S-10 Pest with Light Assault Rifle Last Messages --------------- 09988_ Overheating: Energy bleed (-18). 09988_ Dropped Corrupted Lgt. Treads. 09989_ Acquired Sensor Drone Bay. 10002_ Acquired 179 matter. 10013_ ALERT: Heightened foreign activity detected, multiple search patrols dispatched. 10019_ W-25 Informer sends out distress signal. 10028_ Critical hit (Burn: +37). 10040_ Acquired Visual Processing Unit. 10044_ Slammed into G-47 Trooper. 10054_ W-25 Informer sends out distress signal. 10054_ Slammed into W-25 Informer. 10061_ Slammed into Y-45 Defender. 10063_ Slammed into K-01 Serf. 10083_ W-25 Informer sends out distress signal. 10086_ Slammed into A-02 Transporter. 10087_ EXIT=FOUND 10088_ T-07 Excavator is excavating. 10088_ C-30 ARC bursts open, deploying its payload. 10088_ S-10 Pest unfolds itself. Map ----- +----------------------------------------------------+ | | | | | | | | | | | | | | | | | | | | | | | | | ?????????????????????????????????????????????????? | | ?????????????????????????????????????????????????? | | ??????????????????????? ?????????????????????????? | | ??????????????????????# ??"""??#?????????????????? | | ??????????????????????#[ """"" #????????#####????? | | ??????????????????????# """"" #????##### ###### | | ??????????????????????# #????# | | ??????????????????????# """"" #????# ### ###### | | ??????????????????????# """"" #????# #?##+##????? | | ??????????????????????? """"" #????# #? ????? | | ????????????????????????? ??????# ## "" #??? | | ??????????????####t########+#####???# ## Y" #??? | | ??????????????# #???# ## "" #??? | | ??????????????# < @ ss #???# ## #??? | | ??????????????# s #???# ## #??? | | ??????????????###########+#####w#???# #########??? | | ??????????????????????????????# #???# #?????????## | | ??????????????????????????????# ##### ########?# | | ??????????????????????????????# + | | ??????????????????????????????################?# | | ???????????????????????????????????????????????# | | ???????????????????????????????????????????????### | | ?????????????????????????????????????????????????? | | ?????????????????????????????????????????????????? | | ?????????????????????????????????????????????????? | | ?????????????????????????????????????????????????? | | ?????????????????????????????????????????????????? | | ?????????????????????????????????????????????????? | | ?????????????????????????????????????????????????? | | ????????????????????????????????"?""?????????????? | | ????????????????????????????????"R""?????????????? | | ????????????????????????????????""""?????????????? | | ?????????????????????????????????????????????????? | | ?????????????????????????????????????????????????? | | ?????????????????????????????????????????????????? | | ?????????????????????????????????????????????"""?? | | ?????????????????????????????????????????????"T"?# | | ?????????????????????????????????????????????????# | +----------------------------------------------------+ Best States ------------- Heat Dissipation 41 Energy Generation 14 Energy Capacity 250 Matter Stores 500 Matter Capacity 500 Sight Range 18 Terrain Scan Density 10 Armor Coverage 100 Evasion (%) 50 Recoil Reduction 2 Item Schematics ----------------- Cargo Storage Unit | -10/Materials | Hacked Huge Storage Unit | -10/Materials | Hacked Robot Schematics ------------------ None Fabricated ------------ Nothing Alien Tech Used ----------------- None Achievements -------------- None Challenges ------------ None Game ------ Seed AlphaEnergyBuckler Manual? 0 Play Time 00:49:01 Cumulative 563.5 hours Start 2023.08.04 @ 22:48:06 End 2023.08.05 @ 14:27:01 Sessions 2 Manual Loads 0 Difficulty Rogue Special Mode None Game No. 387 Rogue 387 Adventurer 0 Explorer 0 Win Type - Total 18 Types 9/3/2/0/0/1/2/1/0 Lore% 82 Gallery% 90 Achievement% 80 Wizard Run 0 Options --------- ASCII 0 Keyboard 0 Movement Numpad Keybinds 0 Fullscreen 1 Font 24/Terminus Map View 76x50 Tactical HUD 1 Map Filters NONE Filters NONE Steam 1 RUN: 4cc5af12-2602-4e2e-b65f-9905513a7a16